Cogmind - Beta 14 @@@ ROGUE MODE // 2024.10.11 @ 15:57:16 Player: Ciaphas Result: Destroyed by JB-6DS(R) with Subdweller Laser Performance ------------- Evolutions (0) 0 Regions Visited (2) 400 Robots Destroyed (24) 120 Value Destroyed (582) 582 Prototype IDs (0) 0 Alien Tech Used (0) 0 Bonus (0) 0 TOTAL SCORE: 1102 Bonus ------- None Cogmind --------- Core Integrity 0/250 Matter 67/300 Energy 125/125 System Corruption 0% Temperature Cool (6) Movement Core (550) Ox10 Location -10/Subcaves Parts ------- > --- POWER (1) -------- Light Ion Engine > --- PROPULSION (2) --- (None) > --- UTILITY (2) ------ Large Storage Unit Makeshift Light Armor Plating > --- WEAPON (2) ------- Makeshift Laser Assault Rifle > --- INVENTORY (15) --- Small Storage Unit Signal Interpreter Improved Terrain Scanner Assault Rifle Datajack Flamer Peak State ------------ > --- POWER ------------ Subdweller Power Source > --- PROPULSION ------- Subdweller Monowheel > --- UTILITY ---------- Large Storage Unit Improved Terrain Scanner > --- WEAPON ----------- Makeshift Laser Grenade Launcher > --- INVENTORY -------- Light Ion Engine Small Storage Unit Signal Interpreter Makeshift Light Armor Plating Assault Rifle Assault Rifle Datajack Flamer [Rating: 14] Favorites ----------- Power Light Ion Engine Engine Light Ion Engine Propulsion Light Treads Treads Light Treads Leg Aluminum Leg Wheel Subdweller Monowheel Utility Large Storage Unit Device Improved Terrain Scanner Storage Large Storage Unit Protection Makeshift Light Armor Plating Weapon Assault Rifle Energy Gun Makeshift Laser Ballistic Gun Assault Rifle Launcher Grenade Launcher Build | -11 -10 -10 ------- Run | Yrd Mat Sub Slots Evolved . | . . . Power . | . . . Propulsion . | . . . Utility . | . . . Weapon . | . . . Parts Attached 30 | 4 14 12 Power 5 | . 2 3 Engine 5 | . 2 3 Core . | . . . Reactor . | . . . Propulsion 3 | 2 . 1 Treads 2 | 2 . . Leg . | . . . Wheel 1 | . . 1 Hover . | . . . Flight . | . . . Utility 9 | 2 5 2 Device 4 | 2 2 . Storage 4 | . 3 1 Processor . | . . . Hackware . | . . . Protection 1 | . . 1 Artifact . | . . . Weapon 13 | . 7 6 Energy Gun 1 | . . 1 Energy Cannon . | . . . Ballistic Gun 7 | . 4 3 Ballistic Cannon . | . . . Launcher 5 | . 3 2 Special Weapon . | . . . Impact Weapon . | . . . Slashing Weapon . | . . . Piercing Weapon . | . . . Special Melee Weapon . | . . . Unidentified Prototypes . | . . . Parts Lost 3 | . . 3 Power . | . . . Propulsion 2 | . . 2 Utility . | . . . Weapon 1 | . . 1 Highest Loss Streak 2 | . . 2 To Critical Strikes . | . . . Average Slot Usage (%) 82 | . 95 77 Engine 14 | . 14 14 Treads 9 | . 28 1 Wheel 3 | . . 5 Device 12 | . 10 13 Storage 13 | . 14 13 Energy Gun 8 | . . 12 Ballistic Gun 9 | . 26 2 Launcher 9 | . . 12 Peak Build Rating 14 | 9 9 14 Average Rating 10 | 7 8 11 On Entrance 8 | 6 9 9 Naked Turns . | . . . Heaviest Build 31 | 15 31 31 Greatest Support 40 | 40 40 40 Greatest Overweight (x) 10 | . . 10 Average Overweight (x) 2 | . . 4 Largest Inventory Capacity 25 | 8 25 15 Average Capacity 14 | 8 14 14 Most Carried 9 | 6 9 8 Average Carried 7 | 3 7 7 Final Capacity 15 | 8 15 15 Final Carried 7 | 4 7 6 Class Distribution -------------------- 100% | Mutant Dominant Class ---------------- Mutant | -10/Materials Mutant | -10/Subcaves Resources | -11 -10 -10 ----------- Run | Yrd Mat Sub Matter Collected 782 | 258 331 193 Remotely . | . . . Salvage Created 698 | 80 358 260 Parts 49 | 7 29 13 Haulers Intercepted 1 | . 1 . Recyclers Shooed 1 | 1 . . Parts Field Recycled . | . . . Retrieved Matter . | . . . Parts Self-Destructed 4 | . . 4 Prevented . | . . . Kills | -11 -10 -10 ------- Run | Yrd Mat Sub Combat Hostiles Destroyed 18 | . 11 7 Guns 9 | . 6 3 AOE 9 | . 5 4 Classes Destroyed 9 | 2 5 2 Tunneler 1 | 1 . . Hauler 1 | . 1 . Recycler 1 | 1 . . Operator 1 | . 1 . Watcher 2 | . 2 . Swarmer 6 | . 6 . Grunt 6 | . 5 1 Sentry 1 | . . 1 Subdweller 5 | . . 5 Best Kill Streak 4 | 2 4 2 Combat Bots Only 3 | . 3 2 Max Kills in Single Turn 2 | 1 2 1 Gunslinging . | . . . Exploded 2 | . 2 1 Melee . | . . . Uniques/NPCs Destroyed . | . . . Combat | -11 -10 -10 -------- Run | Yrd Mat Sub Hostile Shots Fired 98 | . 56 42 Missed 20 | . 13 7 Damage Taken 1089 | . 443 646 Core 265 | . 55 210 Absorbed by Shields . | . . . Regen/Repaired (Parts) 189 | . 189 . Core Remaining (%) 100 | 100 . . Volleys Fired 81 | 3 48 30 Largest 2 | 2 2 2 Hottest 80 | 40 50 80 Shots Fired 142 | 6 85 51 Gun 121 | 6 77 38 Cannon . | . . . Launcher 21 | . 8 13 Special . | . . . Kinetic 112 | 6 77 29 Thermal 9 | . . 9 Explosive 21 | . 8 13 Electromagnetic . | . . . Robot Hit Streak 9 | 5 8 9 Robot Miss Streak 6 | . 6 3 Penetration Max . | . . . Secondary Targets . | . . . Shots Hit Robots 79 | 5 42 32 Core Hits 41 | 3 24 14 Critical Kills 1 | . 1 . Critical Parts Destroyed 1 | . 1 . Critical Strikes 2 | . 2 . Destroy 2 | . 2 . Melee Attacks . | . . . Impact . | . . . Slashing . | . . . Piercing . | . . . Sneak Attacks . | . . . Combat Hostiles . | . . . Follow-up Attacks . | . . . Damage Inflicted 1611 | 63 864 684 Guns 957 | 63 591 303 Cannons . | . . . Explosions 639 | . 258 381 Melee . | . . . Ramming 15 | . 15 . Kinetic 923 | 63 591 269 Thermal 34 | . . 34 Explosive 639 | . 258 381 Electromagnetic . | . . . Impact . | . . . Slashing . | . . . Piercing . | . . . Highest Corruption . | . . . Average Corruption . | . . . Corruption Purged . | . . . Corruption Blocked . | . . . Overload Shots . | . . . Overflow Damage 43 | . 43 . Projectiles . | . . . Explosions 43 | . 43 . Melee . | . . . Knockbacks . | . . . Impact . | . . . Kinetic . | . . . Secondary . | . . . Self-Inflicted Damage 48 | . 1 47 Shots 4 | . 1 3 Rammed 4 | . 4 . Targets Rammed 4 | . 4 . Kicked . | . . . Crushed . | . . . Highest Temperature 6 | 6 . . Average Temperature 6 | 6 . . Received Heat Transfer 378 | . 180 198 Siege Activations . | . . . Robots Corrupted . | . . . Combat Hostiles . | . . . Parts Fried . | . . . Impact Corruptions . | . . . Robots Melted . | . . . Combat Hostiles . | . . . Parts Melted . | . . . Heat Transferred 74 | . . 74 Parts Sabotaged . | . . . Parts Stolen . | . . . Parts Stripped . | . . . Power Chain Reactions . | . . . Alert | -11 -10 -10 ------- Run | Yrd Mat Sub Peak Influence 214 | 10 214 . Initial 6 | . 6 . Average 87 | 7 91 . Maximum Alert Level 1 | . 1 . Low Security (%) 94 | 100 94 . Level 1 5 | . 5 . Level 2 . | . . . Level 3 . | . . . Level 4 . | . . . Level 5 . | . . . High Security . | . . . Max Security . | . . . Squads Dispatched 2 | . 2 . Investigation 1 | . 1 . Extermination . | . . . Reinforcement 1 | . 1 . Assault . | . . . Garrison . | . . . Intercept . | . . . Searches Triggered . | . . . Construction Impeded . | . . . Haulers Reinforced . | . . . Active Scanning Responses . | . . . Cargo Convoy Interrupts . | . . . Stealth | -11 -10 -10 --------- Run | Yrd Mat Sub Distress Signals . | . . . Communications Jammed . | . . . Distress Signals . | . . . Times Spotted 27 | . 19 8 Peak Tracking Total 4 | . 4 2 Tactical Retreats 2 | . 2 . Traps | -11 -10 -10 ------- Run | Yrd Mat Sub Traps Triggered 1 | . 1 . Indirectly . | . . . Trap Hack Attempts . | . . . Triggered . | . . . Disarmed . | . . . Reprogrammed . | . . . Reused . | . . . Traps Extracted . | . . . Installed . | . . . Triggered . | . . . Machines | -11 -10 -10 ---------- Run | Yrd Mat Sub Machines Disabled 1 | . 1 . Max in Single Turn 1 | . 1 . Machines Repaired . | . . . Machines Dismantled . | . . . Machines Sabotaged . | . . . Overloaded Fab Kills . | . . . Hacking | -11 -10 -10 --------- Run | Yrd Mat Sub Machines Accessed 6 | . 6 . Terminals 5 | . 5 . Fabricators . | . . . Repair Stations 1 | . 1 . Recycling Units . | . . . Scanalyzers . | . . . Garrison Access . | . . . Total Hacks 17 | . 17 . Successful 8 | . 8 . Failed 9 | . 9 . Catastrophic 2 | . 2 . Database Lockouts . | . . . Manual 7 | . 7 . Terminals 9 | . 9 . Fabricators . | . . . Repair Stations 8 | . 8 . Recycling Units . | . . . Scanalyzers . | . . . Garrison Access . | . . . Terminal Hacks . | . . . Fabricator Hacks . | . . . Repair Station Hacks 6 | . 6 . Scan Component 3 | . 3 . Repair 3 | . 3 . Recycling Unit Hacks . | . . . Scanalyzer . | . . . Garrison Access Hacks . | . . . Unauthorized Hacks 2 | . 2 . Terminals 2 | . 2 . Botnet 1 | . 1 . Operators 1 | . 1 . Fabricators . | . . . Repair Stations . | . . . Recycling Units . | . . . Scanalyzers . | . . . Garrison Access . | . . . Data Cores Recovered . | . . . Used . | . . . Hacking Detections 6 | . 6 . Full Trace Events . | . . . Feedback Events . | . . . Feedback Blocked . | . . . Robot Schematics Acquired . | . . . Robots Built . | . . . Authchips . | . . . Time . | . . . Total Robot Build Rating . | . . . Part Schematics Acquired . | . . . Parts Built . | . . . Authchips . | . . . Time . | . . . Total Part Build Rating . | . . . Parts Repaired 3 | . 3 . Time 90 | . 90 . Parts Recycled . | . . . Recycled Matter . | . . . Retrieved Matter . | . . . Retrieved Components . | . . . Parts Scanalyzed . | . . . Part Schematics Acquired . | . . . Parts Damaged . | . . . Bothacking | -11 -10 -10 ------------ Run | Yrd Mat Sub Used RIF Installer . | . . . Robots Hacked . | . . . Non-combat . | . . . Combat . | . . . Robot Hacks Applied . | . . . Relay Couplers Released . | . . . Fabnet Peak Effective % . | . . . Robots Rewired . | . . . Allies Hacked . | . . . Hacks Repelled . | . . . Allies | -11 -10 -10 -------- Run | Yrd Mat Sub Total Allies . | . . . Largest Group . | . . . Highest-Rated Group . | . . . Highest-Rated Ally . | . . . Total Orders . | . . . Ally Attacks . | . . . Total Damage . | . . . Kills . | . . . Allies Corrupted . | . . . Allies Melted . | . . . Intel | -11 -10 -10 ------- Run | Yrd Mat Sub Robot Analysis Total . | . . . Derelict Logs Recovered 1 | . . 1 Drone Launches . | . . . Drone Recoveries . | . . . Exploration | -11 -10 -10 ------------- Run | Yrd Mat Sub Turns Passed 2868 | 41 887 1940 Spaces Moved 1046 | 15 385 646 Core 272 | . . 272 Treads 434 | 15 385 34 Legs . | . . . Wheels 340 | . . 340 Hover . | . . . Flight . | . . . Fastest Speed 110 | 160 160 110 Average Speed 235 | 160 160 282 Slowest Speed 550 | 160 160 550 Overloaded Moves . | . . . Propulsion Burnouts . | . . . Robots Hopped . | . . . Cave-ins Triggered . | . . . Exploration Rate (%) 33 | 2 64 33 Regions Visited 2 Branch Regions 1 Pre-discovered Areas . | . . . Known Exits Taken . | . . . Unknown Exits Taken 2 | 1 1 . Scrap Searched . | . . . Spaces Dug 4 | . . 4 Terrain Destroyed 122 | . 52 70 Melee . | . . . Projectile . | . . . AOE 122 | . 52 70 Terrain Rammed . | . . . Walls Destroyed . | . . . Machines Disabled . | . . . Actions | -11 -10 -10 --------- Run | Yrd Mat Sub Total 1298 | 27 565 706 Wait 116 | . 106 10 Move 1044 | 14 384 646 Hop . | . . . Pick Up 7 | 1 4 2 Fast Attach 8 | 2 3 3 Attach 5 | . 2 3 Detach 3 | 1 1 1 Swap 17 | 2 9 6 Drop 12 | 4 4 4 Fire 81 | 3 48 30 Melee . | . . . Ram . | . . . Kick . | . . . Crush 4 | . 4 . Escape Stasis . | . . . Rewire 1 | . . 1 Trap . | . . . Miscellaneous . | . . . Route ------- -11/Scrapyard -10/Materials (discovered 3 exits: [*Mat x2] / [*Sub]) -10/Subcaves History --------- Turn | Location | Event 16 | -11/Scrapyard | Discovered new exit (range 2) 42 | -11/Scrapyard | Entered Materials 264 | -10/Materials | Discovered new exit (range 11) 307 | -10/Materials | Build established: Mutant 362 | -10/Materials | Discovered new exit (range 14) 536 | -10/Materials | Discovered new exit (range 12) 676 | -10/Materials | Repaired Assault Rifle 703 | -10/Materials | Repaired Assault Rifle 743 | -10/Materials | Repaired Imp. Terrain Scanner 929 | -10/Materials | Entered Subcaves 1014 | -10/Subcaves | Shifting Twisted Machinery released Sub. Power Source 1026 | -10/Subcaves | Core integrity fell below 50% 1071 | -10/Subcaves | Shifting Twisted Machinery released Flamer 1112 | -10/Subcaves | Shifting Twisted Machinery released Mak. Laser 1257 | -10/Subcaves | Shifting Twisted Machinery released Mak. Light Armor Plating 1260 | -10/Subcaves | Shifting Twisted Machinery released Flamer 1807 | -10/Subcaves | Learned 2 Materials zone layouts 2113 | -10/Subcaves | A swath of the cavern ceiling suddenly collapsed 2850 | -10/Subcaves | Core integrity fell below 20% 2869 | -10/Subcaves | Destroyed by JB-6DS(R) with Subdweller Laser Last Messages --------------- 01132_ RD-SX5(R) destroyed. 01135_ 2R-4ZE(R) destroyed. 01141_ Acquired 30 matter. 01143_ Acquired 15 matter. 01145_ The unstable cave ceiling collapses. 01168_ 4X-KKJ(R) destroyed. Mak. Light Armor Plating falls loose from the Twisted Machinery. Flamer falls loose from the Twisted Machinery. 01268_ Acquired Mak. Light Armor Plating. 01463_ Subatomizers dissect the Sub. Machine Gun. 01484_ Sub. Monowheel shoots sparks and powers down. 01696_ Sub. Power Source shoots sparks and powers down. 01760_ Dropped Broken Sub. Power Source. 01762_ Dropped Broken Sub. Monowheel. 01773_ Subatomizers dissect the Broken Sub. Power Source. 01807_ Acquired derelict log, extracted data. Data stored: Materials zone layouts (x2). A swath of the cavern ceiling suddenly collapses. 02526_ The unstable cave ceiling collapses. 02847_ Grenade Launcher destroyed. Map ----- +----------------------------------------------------+ | | | | | | | | | | | | | | | | | | | ?????????????????????????????????????????????????? | | ?????????????????????????????????????????????????? | | ?????????????????????????????????????????????????? | | ????????????????????????#????????????????????????? | | ??????????????????????????#???#???#??????????????? | | ?????????????????????#?????#???????????????#?????? | | ???????????????????????????????#?#???????????????# | | ???????????????????????????????????#????????#????? | | ?????????????????????????#?????#??????#??????????# | | ????????????????????????????#????#???????????????? | | ????????????????????????????????????????#?????##?? | | ??????????????????????#????????????????????#??#??? | | ??????????????????????# ???????????????###????#??? | | ?????????#???#?? ?????# ####?????????????????????? | | ????????? #### ???#????" ###?#???????#??#???#### | | ????????? ###???###R## ##????#????###???#" | | ???????????? #??## @< #?????? ???#?????##" | | ???????????????# ### ##?? ???"?########"# | | ????????????#### #?#? ?""###"#""##" | | ?????????????# #??#???#?""""#"""## | | ????????????## ## #### "#"??#"""# ### | | ?????????????# ## ## "#?##"#" # # | | ?????? ?????# ??## ##### # # | | ????????????# ???## ###"" # | | ????????????# ??#### ##?#"" | | ????????????# ??## ###### ##?#?"# | | ????????????#??## #####?#####??#?#"# # | | ????? ?????#???## ##########????#### # | | ????????#???????## # ## ###???## #### | | ?????????????????## ##### ^ ### | | ??????##?#????????## ### ### | | ???????????????????# ##### #### ## ## | | ???????????????????## # ## ^ ###? | | ????????#??#???????## ^ #######?? | | ????????????????????## ^ ##?#??#?## | | ??????#??????????????######## #######?#??##?#? | | ???????????#??#?#?###??????# ##??#?#??????#??? | | ???????????????????#???????## ####????????#?#???#? | | ????????????????????????#???##?#???#???????####??? | | ????????????#???#???#????#?????#????#???????????#? | | ???????????????#?????#?#????????#???????????##?#?? | +----------------------------------------------------+ Best States ------------- Heat Dissipation 25 Energy Generation 15 Energy Capacity 250 Matter Stores 300 Matter Capacity 300 Sight Range 16 Terrain Scan Range 16 Terrain Scan Density 10 Armor Coverage 100 Evasion (%) 40 Recoil Reduction 2 Item Schematics ----------------- None Robot Schematics ------------------ None Fabricated ------------ Nothing Alien Tech Used ----------------- None Achievements -------------- None Challenges ------------ None Game ------ Seed AlloyGlidesysExoskeleton Manual? 0 Play Time 00:22:11 Cumulative 22.7 hours Start 2024.10.11 @ 15:36:12 End 2024.10.11 @ 15:57:16 Sessions 1 Manual Loads 0 Difficulty Rogue Special Mode None Game No. 37 Rogue 37 Adventurer 0 Explorer 0 Win Type - Total 0 Types 0/0/0/0/0/0/0/0/0 Lore% 16 Gallery% 24 Achievement% 30 Wizard Run 0 Options --------- Layout 0 ASCII 0 Keyboard 0 Movement Numpad Keybinds 0 Fullscreen 2 Font 24/X11 Map View 76x50 Zoom Use 0% Tactical HUD 1 Map Filters NONE Filters NONE Steam 1 RUN: a859d644-94ec-43db-8441-b6f3fed54818